bitfinex/quotes_ETHUSD_20240731
["timestamp","ask_amount","ask_price","bid_price","bid_amount"]
[1722463585629,3.0836,3243.0,3242.4,3.08408]
[1722463585952,3.08309,3243.5,3242.3,5.45644]
[1722463585953,3.0837,3242.9,3242.3,5.45644]
[1722463586153,3.0837,3242.9,3242.0,3.08449]
[1722463586154,3.08381,3242.8,3242.0,3.08449]
[1722463586371,3.08432,3242.2,3241.6,0.05369822]
[1722463586573,3.08423,3242.3,3241.7,3.08478]
[1722463586891,3.08423,3242.3,3241.7,3.08472]
[1722463587089,3.08423,3242.3,3241.7,3.94508536]
[1722463587584,3.08414,3242.4,3241.9,3.08461]
[1722463587925,7.47,3242.5,3241.9,3.08461]
[1722463588230,3.0843,3242.3,3241.7,3.08472]
[1722463588434,3.0843,3242.3,3241.5,5.45724]
[1722463588435,3.08449,3242.1,3241.5,5.45724]
[1722463588633,3.08449,3242.1,3241.6,3.0]
[1722463589544,3.0843,3242.3,3241.6,3.0]
[1722463589751,3.0843,3242.3,3241.7,3.08478]
[1722463590066,10.55408,3242.5,3241.9,3.08458]
[1722463590267,3.08423,3242.3,3241.7,3.14647326]
[1722463590634,10.55408,3242.5,3241.9,3.08455]
[1722463590937,3.08416,3242.4,3241.7,3.08472]
[1722463591133,3.08416,3242.4,3241.7,4.07668261]
[1722463591333,10.55404,3242.5,3241.9,6.16914]
[1722463591556,7.47,3242.5,3242.1,3.08441]
[1722463591868,7.47,3242.5,3242.3,3.08414]
[1722463592073,2.462,3243.0,3242.3,3.08414]
[1722463592074,9.932,3243.0,3242.3,3.08414]
[1722463592232,3.08376,3242.8,3242.1,3.08434]
[1722463592428,6.53881,3243.0,3242.2,3.08432]
[1722463592646,3.08386,3242.7,3242.2,3.08432]
[1722463593087,3.08386,3242.7,3242.0,3.14611757]
[1722463593293,3.08386,3242.7,3242.0,3.14617757]
[1722463593294,3.08404,3242.5,3242.0,3.14617757]
[1722463593581,3.08386,3242.7,3242.0,3.14617757]
[1722463593783,3.08386,3242.7,3242.1,0.31461776]
[1722463593993,3.08386,3242.7,3242.0,3.14611757]
[1722463594156,3.08395,3242.6,3242.1,3.14608188]
[1722463594356,3.08383,3242.8,3242.1,3.0844]
[1722463594697,3.08371,3242.9,3242.3,3.0842]
[1722463594997,3.08375,3242.8,3242.3,3.0842]
[1722463595649,3.08375,3242.8,3242.1,3.14601189]
[1722463595853,3.08375,3242.8,3242.1,3.39893119]
[1722463596468,3.08341,3243.2,3242.2,2.44298189]
[1722463596674,3.08341,3243.2,3242.5,3.08397]
[1722463597031,3.08362,3243.0,3242.3,3.08416]
[1722463597236,3.08382,3242.8,3242.2,3.08431]
[1722463597462,6.08333,3243.3,3242.2,3.08431]
[1722463597667,3.08382,3242.8,3242.2,3.08431]
[1722463598169,3.08415,3242.4,3241.8,3.08465]
[1722463598374,0.308415,3242.3,3241.8,3.08465]
[1722463598572,3.08415,3242.4,3241.8,3.08465]
[1722463599062,3.08424,3242.3,3241.8,3.08465]
[1722463599263,3.08405,3242.5,3241.9,3.08458]
[1722463599573,3.08405,3242.5,3241.8,3.08462]
[1722463599740,2.4319,3242.7,3241.7,0.06168801]
[1722463599934,3.08394,3242.6,3242.1,3.08441]
[1722463601146,3.08394,3242.6,3241.9,6.16912]
[1722463601344,3.08394,3242.6,3241.8,0.3061688]
[1722463601550,3.08394,3242.6,3241.7,3.14642801]
[1722463601744,3.08413,3242.4,3241.9,3.08455]
[1722463601936,3.08394,3242.6,3241.9,3.08455]
[1722463601937,3.08404,3242.5,3241.9,6.16909]
[1722463602479,3.08404,3242.5,3241.9,3.08454]
[1722463605472,3.08394,3242.6,3241.9,3.08454]
[1722463605723,3.08394,3242.6,3242.1,3.08442]
[1722463605867,3.08379,3242.8,3242.1,3.08442]
[1722463606074,5.43067,3243.0,3242.2,2.3105]
[1722463606408,5.43068,3243.0,3242.4,3.08408]
[1722463606598,5.43068,3243.0,3242.4,3.08406]
[1722463606905,3.08372,3242.9,3242.3,3.08418]
[1722463607311,5.43067,3243.0,3242.4,3.08409]
[1722463607502,5.43067,3243.0,3242.3,3.08421]
[1722463607808,3.08371,3242.9,3242.3,3.08421]
[1722463608972,3.08386,3242.7,3242.1,0.308442]
[1722463609214,2.3471,3243.0,3241.9,5.61753897]
[1722463609388,3.08391,3242.7,3242.2,3.08431]
[1722463610179,3.08395,3242.6,3242.0,3.08444]
[1722463610386,3.08391,3242.7,3242.1,3.08437]
[1722463610898,3.08391,3242.7,3242.0,3.08444]
[1722463610899,3.08391,3242.7,3242.2,3.08432]
[1722463612213,3.08351,3243.1,3242.5,3.08401]
[1722463612383,2.2622,3243.3,3242.3,0.06167889]
[1722463612585,3.08328,3243.3,3242.4,2.3384]
[1722463612909,3.08318,3243.4,3242.8,3.0837]
[1722463613115,3.0832,3243.4,3242.9,3.08365]
[1722463613319,3.08305,3243.6,3242.9,3.14523936]
[1722463613612,3.08295,3243.7,3243.0,3.08349]
[1722463613773,3.08299,3243.6,3243.0,3.08349]
[1722463614169,3.08245,3244.2,3243.0,3.08349]
[1722463614170,3.08249,3244.2,3243.5,3.083]
[1722463614409,2.2992,3244.3,3243.5,3.08303]
[1722463614410,5.38155,3244.3,3243.5,3.08303]
[1722463614611,5.38155,3244.3,3243.7,3.08283]
[1722463614812,3.08257,3244.1,3243.5,3.08303]
[1722463614985,3.08257,3244.1,3243.5,3.08302]
[1722463615195,3.08257,3244.1,3243.6,3.08298]
[1722463615389,3.08257,3244.1,3243.4,0.06165532]
[1722463615390,3.08257,3244.1,3243.5,3.08306]
[1722463616412,0.3812863,3244.1,3243.3,3.08323]
[1722463616585,0.3812863,3244.1,3242.7,3.08383]
[1722463616586,3.4638463,3244.1,3242.9,3.0836]
[1722463616784,3.4638463,3244.1,3243.0,3.0]
[1722463616992,3.08306,3243.6,3243.0,3.0]
[1722463617301,3.08306,3243.6,3242.7,3.08382]
[1722463617302,3.08334,3243.3,3242.7,3.08382]
[1722463617614,3.08334,3243.3,3242.7,3.08377]
[1722463617977,3.08334,3243.3,3242.6,2.3568]
[1722463618179,3.08334,3243.3,3242.8,3.08373]
[1722463618487,3.08321,3243.4,3242.8,3.08368]
[1722463618689,2.3832,3243.6,3242.8,3.08368]
[1722463618690,5.46624,3243.6,3242.8,3.08368]
[1722463618911,3.0832,3243.4,3242.8,3.08368]
[1722463620526,3.08334,3243.3,3242.8,3.08368]
[1722463621391,2.3832,3243.6,3243.0,3.08353]
[1722463621392,6.16607,3243.6,3243.0,3.08353]
[1722463621592,6.91056573,3243.6,3243.0,3.08353]
[1722463621797,6.91057573,3243.6,3243.0,3.08353]
[1722463622299,3.08309,3243.5,3243.0,3.08353]
[1722463622824,3.08309,3243.5,3242.9,3.0836]
[1722463623123,3.08309,3243.5,3243.0,3.08356]
[1722463623323,0.74448573,3243.6,3243.1,3.0834]
[1722463623508,4.36173731,3243.7,3243.1,3.0834]
[1722463623509,3.08295,3243.7,3243.1,3.0834]
[1722463623710,3.0831,3243.5,3243.0,3.08356]
[1722463625532,3.08318,3243.4,3242.8,3.08371]
[1722463625733,3.08318,3243.4,3242.7,3.08384]
[1722463625734,3.0832,3243.4,3242.7,3.08381]
[1722463626026,3.0832,3243.4,3242.9,6.1672]
[1722463626223,3.0832,3243.4,3242.9,3.0836]
[1722463626432,3.0833,3243.3,3242.7,3.08378]
[1722463626640,3.08343,3243.2,3242.7,3.08378]
[1722463627009,7.44524731,3243.4,3242.7,3.08378]
[1722463627311,3.08328,3243.3,3242.8,3.08369]
[1722463627628,1.27878731,3243.4,3242.8,3.08366]
[1722463627924,1.27878731,3243.5,3242.8,3.08366]
[1722463628293,3.08328,3243.3,3242.8,3.08366]
[1722463628632,4.37203221,3243.3,3242.8,3.08366]
[1722463628982,3.08338,3243.2,3242.6,5.44068]
[1722463629189,3.08353,3243.1,3242.5,3.08403]
[1722463630097,1.28875221,3243.2,3242.6,3.08385]
[1722463630311,4.37217221,3243.2,3242.6,3.08385]
[1722463630520,3.08348,3243.1,3242.6,3.08385]
[1722463631222,4.37223221,3243.1,3242.6,3.08385]
[1722463631627,4.37223221,3243.1,3242.4,6.0841]
[1722463631628,3.08356,3243.0,3242.4,6.0841]
[1722463631793,3.08356,3243.0,3242.4,6.08407]
[1722463631995,3.08356,3243.0,3242.3,3.08418]
[1722463631996,3.08376,3242.8,3242.3,3.08418]
[1722463632234,1.28896698,3242.9,3242.2,3.08432]
[1722463632235,3.08385,3242.7,3242.2,3.08432]
[1722463632461,3.08399,3242.6,3242.0,3.08446]
[1722463632733,1.28896698,3242.5,3241.6,2.464]
[1722463632893,1.28896698,3242.5,3241.9,3.08451]
[1722463633099,1.28896698,3242.4,3241.9,3.08461]
[1722463633308,1.28896698,3242.3,3241.9,3.08461]
[1722463633543,1.28896698,3242.3,3241.7,3.08474]
[1722463633544,1.28896698,3242.3,3241.6,2.464]
[1722463633845,1.28896698,3242.3,3241.8,3.08465]
[1722463634011,1.28896698,3242.4,3241.8,3.08465]
[1722463634200,1.28896698,3242.4,3242.0,3.08445]
[1722463634395,4.37309698,3242.4,3241.8,3.08465]
[1722463634827,1.28867202,3242.3,3241.8,6.16929]
[1722463635039,1.28867202,3242.3,3241.8,3.972609]
[1722463635338,1.28867202,3242.4,3242.0,3.08451]
[1722463635692,3.08424,3242.3,3241.8,3.08464]
[1722463636303,4.37291202,3242.3,3241.8,3.08464]
[1722463636630,1.28867202,3242.3,3241.8,3.08462]
[1722463636810,4.69494002,3242.5,3241.8,3.08462]
[1722463636811,4.37280202,3242.4,3241.8,3.08462]
[1722463637440,4.37280202,3242.4,3241.8,6.16925]
[1722463637730,1.28867202,3242.3,3241.9,3.08461]
[1722463637941,3.08413,3242.4,3241.9,3.08461]
[1722463638097,1.28896026,3242.3,3241.9,3.08461]
[1722463639444,1.28896026,3242.4,3241.9,3.08461]
[1722463640940,1.28896026,3242.4,3241.9,0.616923]
[1722463641141,1.28896026,3242.4,3242.3,3.08423]
[1722463641435,1.28896026,3242.7,3242.3,3.08423]
[1722463641835,1.28906671,3242.6,3242.3,3.08423]
[1722463643633,1.28906671,3242.6,3242.2,3.08432]
[1722463644202,3.08409,3242.5,3241.8,3.08464]
[1722463644399,4.37315671,3242.5,3241.8,3.899174]
[1722463644600,1.28906671,3242.3,3241.9,3.0846]
[1722463644838,1.28906671,3242.3,3242.0,3.0845]
[1722463645147,4.69524072,3242.5,3241.8,3.899174]
[1722463645148,4.37326671,3242.4,3241.8,3.899174]
[1722463645322,1.28906671,3242.3,3241.8,3.899174]
[1722463645723,4.37329671,3242.3,3241.8,3.08464]
[1722463645942,3.08448,3242.1,3241.4,3.08505]
[1722463646110,3.08448,3242.1,3241.6,3.08489]
[1722463646111,1.28906671,3242.1,3241.6,3.08489]
[1722463646313,4.37350671,3242.1,3241.6,3.08489]
[1722463646532,4.37357671,3242.0,3241.4,6.17]
[1722463646737,4.37372671,3241.9,3241.4,3.08499]
[1722463646920,4.37372671,3241.9,3241.2,3.08524]
[1722463646921,1.28906671,3241.8,3241.2,3.08521]
[1722463647120,1.28906671,3241.7,3241.1,3.08535]
[1722463647354,3.08489,3241.6,3240.8,5.71661]
[1722463647540,3.08489,3241.6,3241.0,3.08538]
[1722463647753,1.28835519,3241.6,3241.0,3.08538]
[1722463648071,1.28835519,3241.6,3241.2,3.08526]
[1722463648219,4.37326519,3241.6,3241.0,3.08538]
[1722463648761,4.37326519,3241.6,3240.8,2.631]
[1722463648762,4.37326519,3241.6,3241.1,3.08536]
[1722463649137,3.08507,3241.5,3240.9,3.08547]
[1722463649345,4.37342519,3241.5,3241.0,3.0]
[1722463649660,3.08509,3241.4,3241.0,3.0]
[1722463649867,3.08509,3241.4,3240.4,2.631]
[1722463649868,3.08537,3241.1,3240.5,3.08586]
[1722463650024,3.08537,3241.1,3240.4,3.08595]
[1722463650228,4.37361519,3241.3,3240.6,3.08579]
[1722463650563,5.6104619,3241.3,3240.8,3.08563]
[1722463650790,3.67894416,3241.4,3240.9,3.08555]
[1722463651224,3.67894416,3241.4,3241.0,3.08545]
[1722463651225,1.28654416,3241.4,3241.0,3.08545]
[1722463651436,1.28654416,3241.4,3240.4,2.631]
[1722463651437,4.37159416,3241.5,3240.8,3.08558]
[1722463651640,4.37159416,3241.5,3240.9,3.08554]
[1722463652474,3.08505,3241.5,3240.9,3.08554]
[1722463652667,6.17012,3241.5,3240.9,3.08554]
[1722463652973,7.07660446,3241.5,3240.9,3.08554]
[1722463654792,1.28654416,3241.6,3241.1,3.08536]
[1722463654942,3.08481,3241.7,3241.1,6.1706]
[1722463655145,8.75654416,3241.8,3241.3,3.08516]
[1722463655146,7.47,3241.8,3241.3,3.08516]
[1722463655351,7.47,3241.8,3240.7,5.45792]
[1722463655352,1.28654416,3241.9,3240.9,3.0855]
[1722463655583,3.08476,3241.8,3241.2,3.0852]
[1722463655787,3.08462,3241.9,3241.2,3.0852]
[1722463656285,3.08461,3241.9,3241.4,3.08503]
[1722463656589,15.25442,3242.1,3241.6,3.08488]
[1722463656744,17.88574642,3242.1,3241.6,3.08488]
[1722463656945,17.88574642,3242.1,3241.0,3.65709]
[1722463656946,17.88574642,3242.1,3241.2,3.08521]
[1722463657147,20.97024642,3242.1,3241.4,3.08501]
[1722463657380,3.08453,3242.0,3241.4,3.08501]
[1722463657559,3.08453,3242.0,3241.4,6.17003]
[1722463657877,3.08453,3242.0,3241.5,3.08498]
[1722463658983,12.17,3242.1,3241.7,3.08479]
[1722463659182,12.17,3242.1,3241.3,2.3727]
[1722463659388,12.17,3242.1,3241.6,3.08483]
[1722463659687,3.08442,3242.1,3241.6,3.08483]
[1722463660773,3.08442,3242.1,3241.4,3.08499]
[1722463661086,3.08442,3242.1,3241.3,6.003614]
[1722463661087,3.08466,3241.9,3241.3,3.08517]
[1722463661284,3.08471,3241.8,3241.3,3.08517]
[1722463661887,6.16912,3242.0,3241.3,6.17029]
[1722463662069,3.08462,3241.9,3241.3,3.08512]
[1722463663092,3.08473,3241.8,3241.3,3.08512]
[1722463663858,3.08481,3241.7,3241.2,3.08525]
[1722463666669,3.08518,3241.3,3240.7,3.08565]
[1722463667065,3.08518,3241.3,3240.8,3.08564]
[1722463667968,3.08518,3241.3,3240.8,3.08558]
[1722463669678,3.08506,3241.5,3240.7,3.08574]
[1722463669876,3.08506,3241.5,3240.6,3.08579]
[1722463669877,3.08529,3241.2,3240.6,3.08579]
[1722463672721,5.38568,3241.1,3240.4,3.08596]
[1722463672904,5.38568,3241.1,3240.2,6.08618]
[1722463672905,3.08562,3240.9,3240.2,3.08618]
[1722463673212,3.08562,3240.9,3240.0,5.79458]
[1722463673213,3.58752234,3241.1,3240.1,3.08625]
[1722463673506,3.58752234,3241.1,3240.0,0.0772]
[1722463673507,3.086,3240.5,3240.0,0.0772]
[1722463673879,3.08603,3240.4,3240.0,0.0772]
[1722463674334,3.08613,3240.3,3240.0,0.0772]
[1722463674634,2.484,3240.4,3240.0,0.0772]
[1722463675006,3.08615,3240.3,3240.0,0.0772]
[1722463675713,2.484,3240.4,3240.0,0.0772]
[1722463676714,3.08614,3240.3,3240.0,0.0772]
[1722463677509,3.08629,3240.2,3240.0,0.0772]
[1722463678746,2.484,3240.4,3240.0,0.0772]
[1722463678958,3.08614,3240.3,3240.0,0.0772]
[1722463679918,2.484,3240.4,3240.0,0.0772]
[1722463680148,5.57009,3240.4,3240.0,0.0772]
[1722463681406,3.08596,3240.5,3240.0,3.16356]
[1722463681816,4.37279916,3240.7,3240.1,3.08631]
[1722463682007,0.68466992,3240.6,3240.1,3.08631]
[1722463682233,4.37279916,3240.7,3240.2,3.08621]
[1722463682431,1.28700916,3240.7,3240.0,5.55212]
[1722463682645,3.08605,3240.4,3240.0,0.0772]
[1722463682949,3.08613,3240.3,3240.0,0.0772]
[1722463683330,4.37278525,3240.6,3240.0,0.0772]
[1722463683530,3.08589,3240.6,3240.0,3.1636]
[1722463684139,1.28689525,3240.7,3240.0,0.0772]
[1722463684347,10.55572,3240.8,3240.2,3.08615]
[1722463684348,10.55567,3240.8,3240.2,3.08615]
[1722463684641,7.47,3240.8,3240.2,3.08617]
[1722463684860,7.47,3240.8,3240.4,3.08597]
[1722463685012,7.47,3240.8,3240.4,3.08595]
[1722463685433,7.47,3240.8,3240.5,3.08589]
[1722463685844,7.47,3240.8,3240.6,3.08584]
[1722463687236,7.47,3240.8,3240.5,3.08589]
[1722463687947,7.47,3240.8,3240.4,3.08595]
[1722463689247,3.08556,3240.9,3240.4,3.08595]
[1722463689545,4.37245525,3240.9,3240.4,3.08595]
[1722463689759,5.27921406,3240.9,3240.1,3.08632]
[1722463689919,2.19365406,3240.9,3240.4,3.08602]
[1722463690623,5.27926406,3240.9,3240.4,3.08602]
[1722463691571,1.28689525,3240.8,3240.4,3.08602]
[1722463691933,1.28689525,3240.8,3240.4,3.08596]
[1722463692274,1.28689525,3240.8,3240.5,3.08593]
[1722463692486,1.28689525,3240.8,3240.3,3.08604]
[1722463692688,1.28689525,3240.8,3240.4,3.08602]
[1722463693286,1.28689525,3240.8,3240.6,3.08576]
[1722463693574,10.55533,3241.2,3240.6,3.08576]
[1722463693575,1.28689525,3241.0,3240.6,3.08576]
[1722463693779,1.61074012,3241.1,3240.6,3.08576]
[1722463693780,1.28689525,3240.9,3240.6,3.08576]
[1722463694734,1.28689525,3240.9,3240.4,5.42848]
[1722463694972,1.28689525,3240.9,3240.5,3.08593]
[1722463695135,1.28839947,3240.9,3240.5,3.08593]
[1722463695328,1.28839947,3240.8,3240.5,3.08593]
[1722463695551,1.28839947,3240.9,3240.2,3.08617]
[1722463695945,1.28839947,3240.8,3240.4,3.08603]
[1722463696138,10.55533,3241.2,3240.5,3.08587]
[1722463696139,1.28839947,3240.9,3240.5,3.08587]
[1722463696764,1.28839947,3240.9,3240.6,3.08584]
[1722463697762,1.28839947,3240.9,3240.5,3.08594]
[1722463699331,1.28839947,3241.0,3240.4,3.08603]
[1722463699532,3.0856,3240.9,3240.4,3.08603]
[1722463699728,3.0856,3240.9,3240.0,0.0772]
[1722463699729,3.08594,3240.5,3240.0,3.16356]
[1722463700096,2.4718,3240.7,3240.0,3.16356]
[1722463700097,4.37428947,3240.6,3240.0,0.0772]
[1722463700249,2.4718,3240.7,3240.0,0.0772]
[1722463700250,4.37435947,3240.5,3240.0,0.0772]
[1722463700771,3.08618,3240.3,3240.0,0.0772]
[1722463700929,3.08623,3240.2,3240.0,0.0772]
[1722463701547,3.08632,3240.1,3240.0,0.0772]
[1722463701755,3.83224726,3240.1,3240.0,0.0772]
[1722463704246,1.28672261,3240.2,3240.0,0.0772]
[1722463704434,3.08624,3240.2,3240.0,0.0772]
[1722463704833,4.37283883,3240.2,3240.0,0.0772]
[1722463705043,1.60824854,3240.4,3240.0,0.0772]
[1722463705044,6.17264,3240.1,3240.0,0.0772]
[1722463705252,8.47854,3240.1,3240.0,0.0772]
[1722463705454,11.22412728,3240.1,3240.0,0.0772]
[1722463705655,9.61587874,3240.1,3240.0,0.0772]
[1722463706244,11.22377778,3240.1,3240.0,0.0772]
[1722463706905,9.61587874,3240.1,3240.0,0.0772]
[1722463709291,11.22385809,3240.1,3240.0,0.0772]
[1722463709460,14.31017809,3240.1,3240.0,0.0772]
[1722463709788,3.08718,3239.2,3238.2,5.71911]
[1722463709944,8.50936,3239.2,3238.2,3.08811]
[1722463710150,8.50936,3239.2,3238.1,5.41061]
[1722463710151,13.20459948,3239.2,3238.1,5.41061]
[1722463710374,13.75459948,3239.2,3238.1,2.3224]
[1722463710678,12.14654,3239.2,3238.1,5.41054]
[1722463710902,13.55416114,3239.2,3238.2,3.08812]
[1722463711048,10.46698114,3239.2,3238.2,3.08812]
[1722463711247,12.07324145,3239.2,3238.2,3.08812]
[1722463711578,12.07324145,3239.2,3238.1,5.41061]
[1722463711579,15.16042145,3239.2,3238.1,5.41061]
[1722463711785,13.55416114,3239.2,3238.1,5.41061]
[1722463712384,13.55416114,3239.2,3238.1,8.49876]
[1722463712548,10.46698114,3239.2,3238.2,3.08811]
[1722463712879,10.46698114,3239.2,3238.1,5.41055]
[1722463712880,13.55416114,3239.2,3238.0,3.08826]
[1722463713181,13.55416114,3239.2,3237.8,5.0197]
[1722463713352,13.55416114,3239.2,3237.9,3.0884]
[1722463713353,16.55416114,3239.2,3237.9,3.0884]
[1722463713547,16.55416114,3239.2,3238.0,3.0883]
[1722463713779,6.82980114,3239.2,3238.3,3.08798]
[1722463713960,6.17436,3239.2,3238.5,3.08782]
[1722463714177,3.08718,3239.2,3238.5,3.08782]
[1722463714375,4.37125879,3239.2,3238.5,3.08782]
[1722463714649,1.28407879,3239.4,3238.4,2.3992]
[1722463714971,6.17436,3239.2,3237.9,3.08836]
[1722463715292,9.92320388,3239.2,3238.1,3.0882]
[1722463715761,13.01038388,3239.2,3238.1,3.0882]
[1722463716299,14.29349085,3239.2,3238.1,3.0882]
[1722463716994,13.01038388,3239.2,3238.1,3.0882]
[1722463717590,14.2936391,3239.2,3238.1,3.08816]
[1722463718383,13.01038388,3239.2,3238.1,3.08816]
[1722463718563,14.2936391,3239.2,3238.1,3.08816]
[1722463718889,13.01038388,3239.2,3237.9,5.48754]
[1722463719049,17.61396841,3239.2,3237.9,5.48754]
[1722463719250,17.61396841,3239.2,3238.0,3.0883]
[1722463719652,16.01038388,3239.2,3238.0,3.0883]
[1722463719970,17.29257489,3239.2,3238.0,3.0883]
[1722463720151,17.29257489,3239.2,3237.9,2.3992]
[1722463721175,14.20539489,3239.2,3238.2,3.08813]
[1722463721375,12.92320388,3239.2,3238.2,3.08813]
[1722463721571,0.74584388,3239.2,3238.5,2.4622]
[1722463721761,3.08718,3239.2,3238.6,3.08769]
[1722463721960,3.08718,3239.2,3238.5,2.4622]
[1722463722689,2.2607,3239.5,3238.9,3.08743]
[1722463722690,5.34765,3239.5,3238.9,3.08743]
[1722463722859,3.08687,3239.6,3238.9,6.17482]
[1722463723053,3.08686,3239.6,3238.7,3.0876]
[1722463723253,3.08686,3239.6,3239.0,3.08732]
[1722463723584,10.55665,3239.8,3239.2,2.3942]
[1722463723787,3.08686,3239.6,3239.2,2.3942]
[1722463724861,10.55665,3239.8,3239.2,5.48137]
[1722463725065,10.55665,3239.8,3239.2,2.3942]
[1722463725680,10.55665,3239.8,3239.2,5.48137]
[1722463725888,10.55665,3239.8,3239.2,2.3942]
[1722463726089,3.0867,3239.7,3239.2,2.3942]
[1722463726494,3.08681,3239.6,3239.2,2.3942]
[1722463726882,13.64335,3239.8,3239.2,2.3942]
[1722463727070,3.08718,3239.2,3239.1,0.0048348]
[1722463727496,3.08713,3239.3,3239.1,0.0048348]
[1722463727671,3.08715,3239.3,3239.1,0.0048348]
[1722463728605,3.08718,3239.2,3239.1,0.0048348]
[1722463731007,6.17436,3239.2,3239.1,0.0048348]
[1722463731180,6.791796,3239.2,3239.1,0.0048348]
[1722463732834,7.341796,3239.2,3239.1,0.0048348]
[1722463737429,10.428976,3239.2,3239.1,0.0048348]
[1722463737586,8.62398701,3239.2,3239.1,0.0048348]
[1722463737787,7.341796,3239.2,3239.1,0.0048348]
[1722463738419,8.62398701,3239.2,3239.1,0.0048348]
[1722463738616,7.341796,3239.2,3239.1,0.0048348]
[1722463740399,8.62398701,3239.2,3239.1,0.0048348]
[1722463740610,7.341796,3239.2,3239.1,0.0048348]
[1722463740811,8.62456956,3239.2,3239.1,0.0048348]
[1722463741127,8.62456534,3239.2,3239.1,0.0048348]
[1722463741457,7.341796,3239.2,3239.1,0.0048348]
[1722463741661,8.62487784,3239.2,3239.1,0.0048348]
[1722463741868,4.37025618,3239.2,3239.1,0.0048348]
[1722463742159,4.27125401,3239.6,3239.1,0.0048348]
[1722463742160,4.36987618,3239.6,3239.1,0.0048348]
[1722463742333,3.08694,3239.5,3239.1,0.0048348]
[1722463743023,3.08699,3239.4,3239.1,0.0048348]
[1722463743207,3.08709,3239.3,3239.1,0.0048348]
[1722463743404,3.08718,3239.2,3239.1,0.0048348]
[1722463743609,6.791777,3239.2,3239.1,0.0048348]
[1722463744005,11.48354987,3239.2,3239.1,0.0048348]
[1722463744201,12.878957,3239.2,3239.1,0.0048348]
[1722463744405,15.35446844,3239.2,3239.1,0.0048348]
[1722463744732,13.428957,3239.2,3239.1,0.0048348]
[1722463744924,15.35446844,3239.2,3239.1,0.0048348]
[1722463745309,13.59652546,3239.2,3239.1,0.0048348]
[1722463747312,16.68370546,3239.2,3239.1,0.0048348]
[1722463747511,19.47916253,3239.2,3239.1,0.0048348]
[1722463747723,19.47916253,3239.2,3239.1,4.8e-06]
[1722463747724,24.94804253,3239.2,3239.1,4.8e-06]
[1722463747923,3.08857,3237.8,3237.4,2.2523]
[1722463749220,4.37329164,3237.8,3237.4,2.2523]
[1722463749415,1.28472164,3237.9,3237.4,2.2523]
[1722463749620,4.37320164,3237.9,3237.4,2.2523]
[1722463749925,3.08848,3237.9,3237.4,2.2523]
[1722463750154,3.08861,3237.7,3237.4,2.2523]
[1722463750380,3.08867,3237.7,3237.0,3.08921]
[1722463750524,3.08871,3237.6,3237.1,0.617854]
[1722463751060,3.08871,3237.6,3236.9,3.08931]
[1722463751243,3.08886,3237.5,3236.9,3.08931]
[1722463751979,3.08892,3237.4,3236.8,4.9842]
[1722463752322,6.1779,3237.4,3236.8,4.9842]
[1722463752526,3.08901,3237.3,3236.8,2.3532]
[1722463752785,3.08892,3237.4,3236.8,2.3532]
[1722463752947,3.08892,3237.4,3236.8,5.986879]
[1722463754475,1.28472164,3237.7,3236.8,2.3532]
[1722463754628,3.089,3237.3,3236.8,2.3532]
[1722463754828,3.08925,3237.1,3236.8,2.3532]
[1722463755165,1.28472164,3237.4,3236.2,2.39]
[1722463755369,3.08961,3236.7,3236.2,2.39]
[1722463755544,3.08971,3236.6,3236.2,2.39]
[1722463755746,3.08971,3236.6,3236.2,2.34]
[1722463756326,3.08941,3236.9,3236.2,5.43003]
[1722463756727,3.08962,3236.7,3236.2,5.43003]
[1722463757055,3.08962,3236.7,3236.2,2.34]
[1722463757264,0.617903,3236.7,3234.2,1.454285]
[1722463757457,9.27069,3236.0,3235.1,0.05381157]
[1722463757665,10.23116398,3236.0,3234.4,2.631]
[1722463757840,11.10541164,3236.0,3234.7,3.0914]
[1722463758045,11.10541164,3236.0,3234.4,2.631]
[1722463758046,11.10541164,3236.0,3234.6,3.09155]
[1722463758233,11.10541164,3236.0,3234.5,3.09158]
[1722463758429,9.82069,3236.0,3234.5,3.09158]
[1722463758629,19.48998889,3236.0,3234.3,3.09178]
[1722463758861,20.32007219,3236.0,3234.3,2.3095]
[1722463759066,20.32007219,3236.0,3234.3,5.40134]
[1722463759067,21.92060523,3236.0,3234.3,5.40134]
[1722463759242,21.92060523,3236.0,3234.3,5.40127]
[1722463759440,21.59733772,3236.0,3234.3,5.40127]
[1722463759669,20.32007219,3236.0,3234.3,2.3095]
[1722463759831,21.59733772,3236.0,3234.3,5.40127]
[1722463760328,21.59733772,3236.0,3234.4,3.09174]
[1722463760530,20.32007219,3236.0,3234.3,2.3095]
[1722463760952,20.32007219,3236.0,3234.4,3.09173]
[1722463761136,17.22984219,3236.0,3234.3,2.3095]
[1722463761329,20.32007219,3236.0,3234.3,8.46313063]
[1722463761534,20.32007219,3236.0,3234.4,3.09173]
[1722463761756,17.22984219,3236.0,3234.5,3.0916]
[1722463762145,17.22984219,3236.0,3234.6,3.09155]
[1722463762351,17.22984219,3236.0,3234.7,3.09146]
[1722463762548,14.13961219,3236.0,3235.0,3.09116]
[1722463762748,14.13961219,3236.0,3234.8,3.09131]
[1722463763731,14.13961219,3236.0,3235.1,2.2641]
[1722463763732,8.28951219,3236.0,3235.1,2.2641]
[1722463763969,6.18046,3236.0,3235.1,2.2641]
[1722463764268,6.18046,3236.0,3234.6,3.09152]
[1722463764269,12.27069,3236.0,3234.6,3.09152]
[1722463764460,12.27069,3236.0,3234.7,2.2641]
[1722463764660,9.18046,3236.0,3234.7,2.2641]
[1722463765049,9.18046,3236.0,3234.9,3.09124]
[1722463765364,9.18046,3236.0,3234.7,2.2641]
[1722463765569,12.27069,3236.0,3234.8,3.09131]
[1722463765749,12.27069,3236.0,3234.9,3.09128]
[1722463765750,9.18046,3236.0,3234.9,3.09128]
[1722463765950,13.497757,3236.0,3234.7,5.35551]